bitfinex/quotes_ETHUSD_20250605
["timestamp","ask_amount","ask_price","bid_price","bid_amount"]
[1749147294940,9.541,2560.0,2559.2,16.0]
[1749147295139,11.41637,2560.0,2559.5,3.906922]
[1749147295346,11.41637,2560.0,2559.7,3.90663364]
[1749147295574,11.41637,2560.0,2559.2,19.90744031]
[1749147295738,9.2127,2560.2,2560.0,3.90614245]
[1749147295942,9.506,2560.1,2560.0,3.90614245]
[1749147296376,0.8243,2560.5,2559.9,3.90637945]
[1749147296377,0.8243,2560.5,2559.9,3.90640259]
[1749147296581,9.493,2560.4,2560.3,3.90579228]
[1749147296739,9.493,2560.4,2559.6,3.90684748]
[1749147296740,3.90587957,2560.3,2559.6,3.90671169]
[1749147296940,40.0,2560.1,2559.5,0.571]
[1749147297177,33.90651082,2559.9,2559.3,3.90723861]
[1749147297362,30.0,2559.9,2559.5,3.90692046]
[1749147297558,30.0,2559.9,2559.2,0.571]
[1749147297559,30.0,2559.9,2559.2,0.96854252]
[1749147297964,30.0,2559.9,2559.6,3.90675643]
[1749147298161,3.90091672,2559.8,2559.6,3.90675216]
[1749147298438,30.0,2559.9,2559.2,0.571]
[1749147298643,9.484,2560.0,2559.3,0.55]
[1749147298982,9.484,2560.0,2559.7,3.90669714]
[1749147299159,30.0,2559.9,2559.3,0.55]
[1749147299357,30.0,2559.9,2559.6,3.90683282]
[1749147299553,30.0,2559.9,2559.7,3.90656905]
[1749147299859,9.43,2560.0,2559.9,4.45628532]
[1749147300177,9.43,2560.0,2559.9,19.90628532]
[1749147300746,0.7847,2560.7,2560.6,3.90533468]
[1749147301068,10.1977,2560.7,2560.6,3.90533468]
[1749147301274,10.1977,2560.7,2560.0,3.90625]
[1749147301583,0.02,2560.9,2560.3,3.90565675]
[1749147301888,9.401,2560.6,2560.5,3.9054872]
[1749147303061,34.72991224,2560.5,2559.6,0.51]
[1749147303257,30.0,2560.1,2559.2,4.87079738]
[1749147303461,0.8146,2559.8,2559.4,3.90716574]
[1749147303658,0.8146,2559.8,2559.7,3.90670781]
[1749147303959,9.366,2559.8,2559.4,8.71026805]
[1749147304159,9.366,2559.8,2559.7,3.90670781]
[1749147304400,9.366,2559.8,2559.3,16.0]
[1749147304573,9.366,2559.8,2559.6,3.90678983]
[1749147304947,10.38149,2559.8,2559.6,3.9068304]
[1749147305197,10.38149,2559.8,2559.2,0.39238369]
[1749147305483,30.0,2559.7,2559.6,3.90686044]
[1749147305681,30.0,2559.7,2559.0,16.0]
[1749147305896,30.0,2559.7,2559.6,3.90686044]
[1749147306183,33.90091672,2559.7,2559.6,3.90686044]
[1749147306591,0.7889,2559.9,2559.8,3.90655519]
[1749147306747,30.7994,2560.3,2560.2,3.90594484]
[1749147306949,0.7994,2560.8,2559.7,3.90668151]
[1749147307200,0.7994,2560.8,2560.7,3.90518217]
[1749147307349,10.1074,2560.8,2560.7,3.90518217]
[1749147307545,0.7994,2560.8,2560.7,3.90518217]
[1749147307794,0.02,2560.9,2560.8,3.90502967]
[1749147308284,0.02,2560.9,2560.8,21.64758432]
[1749147308454,9.307,2560.9,2560.8,21.64758432]
[1749147308656,9.301,2560.9,2560.8,22.19758432]
[1749147308859,0.02,2560.9,2560.8,30.90785237]
[1749147309082,9.293,2560.9,2560.8,30.90785237]
[1749147309383,9.287,2560.9,2560.8,31.30799305]
[1749147309572,9.28,2560.9,2560.8,31.30799305]
[1749147310292,9.268,2560.9,2560.8,31.30799305]
[1749147310585,0.02,2561.9,2561.8,19.90350534]
[1749147310783,9.259,2561.9,2561.8,19.90350534]
[1749147312097,9.259,2561.9,2561.8,16.0]
[1749147312389,9.223,2561.9,2561.8,19.90350534]
[1749147312697,0.02,2561.9,2561.8,19.90350534]
[1749147312868,9.216,2561.9,2561.8,19.90350534]
[1749147313064,9.216,2561.9,2561.8,16.0]
[1749147313325,41.00335206,2561.9,2561.8,16.0]
[1749147313460,48.90670504,2561.9,2561.8,16.0]
[1749147313648,48.54235206,2561.9,2561.8,16.0]
[1749147313982,14.15065206,2561.9,2561.8,16.0]
[1749147314331,14.15065206,2561.9,2561.8,19.90350534]
[1749147314464,9.193,2561.9,2561.8,19.90350534]
[1749147314961,9.173,2561.9,2561.8,20.45350534]
[1749147315709,9.173,2561.9,2561.8,16.0]
[1749147315868,10.20466206,2561.9,2561.8,19.90350534]
[1749147316371,3.556,2562.5,2561.9,16.0]
[1749147316575,9.123,2562.4,2562.1,16.0]
[1749147316884,9.123,2562.4,2561.5,4.45387373]
[1749147316885,1.65813692,2562.4,2562.2,19.90289594]
[1749147317059,9.108,2562.3,2562.2,16.0]
[1749147317267,9.108,2562.3,2561.6,16.0]
[1749147317459,9.108,2562.3,2562.0,3.90319918]
[1749147317783,9.097,2562.2,2562.1,16.0]
[1749147317982,9.089,2562.2,2561.4,1.121]
[1749147318161,9.089,2562.2,2561.6,0.55]
[1749147318359,9.9979,2562.2,2561.5,16.0]
[1749147318559,9.9979,2562.2,2561.3,0.55]
[1749147318761,9.9979,2562.2,2562.0,16.0]
[1749147318998,9.9979,2562.2,2561.8,16.0]
[1749147319157,0.41174486,2562.1,2562.0,16.0]
[1749147319360,0.41174486,2562.1,2561.8,19.90345719]
[1749147319581,0.41174486,2562.1,2561.7,19.90358461]
[1749147319769,0.41174486,2562.1,2561.8,3.90342547]
[1749147319966,0.757,2562.4,2561.9,16.0]
[1749147320277,0.757,2562.4,2561.5,4.45392944]
[1749147320278,9.054,2562.3,2561.5,4.45392944]
[1749147320484,0.757,2562.4,2562.3,16.0]
[1749147320660,4.0,2562.4,2562.3,19.90274362]
[1749147320868,1.16477786,2563.5,2562.5,16.0]
[1749147320869,10.0,2562.9,2562.5,16.0]
[1749147321061,9.038,2562.8,2562.6,3.90225499]
[1749147321273,12.94007341,2562.8,2562.2,19.9028596]
[1749147321475,30.0,2562.7,2562.2,19.9028596]
[1749147321998,30.0,2562.7,2562.3,16.0]
[1749147322200,3.90159742,2563.1,2562.3,16.0]
[1749147322493,9.2349,2563.2,2562.8,3.9019822]
[1749147322494,30.0,2562.9,2562.8,3.9019822]
[1749147322814,4.0,2562.9,2562.8,19.9019822]
[1749147323151,4.0,2562.9,2562.8,16.0]
[1749147323152,12.992,2562.9,2562.8,16.0]
[1749147323477,8.992,2562.9,2562.8,16.0]
[1749147323798,8.992,2562.9,2562.8,19.9019822]
[1749147324168,5.28687786,2563.5,2563.1,3.9014332]
[1749147324359,5.28687786,2563.5,2563.0,3.90167772]
[1749147324360,38.969,2563.4,2563.0,16.0]
[1749147324557,30.0,2563.3,2562.9,16.0]
[1749147324856,30.0,2562.9,2561.9,3.90324612]
[1749147325063,0.7588,2562.5,2561.5,0.7702]
[1749147325272,8.955,2562.4,2562.2,3.90278235]
[1749147325612,10.26268,2562.4,2562.0,3.90319581]
[1749147325810,8.955,2562.4,2562.1,3.90300481]
[1749147326110,8.955,2562.4,2561.5,4.67411964]
[1749147326111,8.955,2562.4,2562.3,3.90274362]
[1749147326431,4.72149034,2562.8,2562.3,3.90274362]
[1749147326736,0.8195,2562.2,2561.5,0.7702]
[1749147326939,8.93,2562.1,2561.9,3.90329447]
[1749147327074,40.0,2561.8,2561.1,0.02]
[1749147327273,30.0,2561.6,2561.1,0.02]
[1749147327576,30.0,2561.8,2561.5,16.0]
[1749147327934,0.7875,2562.2,2562.0,16.0]
[1749147328222,0.7875,2562.2,2561.2,13.16468785]
[1749147328223,30.0,2562.0,2561.6,16.0]
[1749147328420,30.0,2561.9,2561.5,16.0]
[1749147328573,30.0,2562.0,2561.5,3.90391347]
[1749147328872,30.0,2562.0,2561.3,16.0]
[1749147329073,30.0,2562.0,2561.6,16.0]
[1749147329273,40.0,2561.8,2561.1,0.7765]
[1749147329571,30.0,2561.6,2561.1,3.92442044]
[1749147329811,0.7875,2561.7,2561.6,3.90381011]
[1749147329993,30.0,2561.9,2561.8,16.0]
[1749147330317,8.883,2561.9,2561.1,0.02]
[1749147330518,30.0,2561.7,2561.3,16.0]
[1749147330817,3.90359302,2561.8,2561.1,3.92456266]
[1749147330818,40.0,2561.5,2561.1,0.02]
[1749147330972,8.869,2561.4,2561.3,19.9042625]
[1749147331577,30.0,2562.1,2561.5,4.45396252]
[1749147331776,8.852,2562.0,2561.9,19.90322721]
[1749147331975,30.0,2562.4,2562.1,3.90296789]
[1749147332186,8.852,2562.3,2562.2,3.90289594]
[1749147332387,30.0,2562.2,2561.6,16.0]
[1749147332673,30.0,2562.2,2562.0,16.0]
[1749147332876,30.0,2562.2,2562.1,16.0]
[1749147333190,30.0,2562.2,2561.5,3.90388951]
[1749147333191,33.90304828,2562.1,2561.5,3.90388951]
[1749147333390,40.0,2561.8,2561.1,0.02]
[1749147333589,8.821,2561.7,2561.6,16.0]
[1749147333777,8.821,2561.7,2561.4,16.0]
[1749147333975,30.0,2561.6,2561.3,16.0]
[1749147334178,30.0,2561.5,2561.2,3.90439597]
[1749147334377,40.0,2561.2,2561.1,3.92442823]
[1749147334588,0.7565,2561.3,2561.2,3.9044198]
[1749147334813,0.7565,2561.3,2561.2,19.9044198]
[1749147335020,8.812,2561.4,2561.3,19.90426736]
[1749147335514,8.812,2561.4,2561.1,0.02]
[1749147335515,30.7565,2561.6,2561.5,19.90396252]
[1749147335718,39.5465,2561.6,2561.5,19.90396252]
[1749147335874,30.0,2561.6,2561.5,19.90396252]
[1749147336069,30.0,2561.8,2561.5,16.0]
[1749147336276,3.271,2561.9,2561.8,19.90350534]
[1749147336484,3.271,2561.9,2561.7,16.0]
[1749147336485,12.045,2561.9,2561.7,16.0]
[1749147336689,13.28645584,2561.9,2561.6,16.0]
[1749147337014,30.36954792,2561.8,2561.7,19.90365772]
[1749147337217,30.36954792,2561.8,2561.7,16.0]
[1749147337526,35.43082706,2561.8,2561.7,16.0]
[1749147337689,35.06946464,2561.8,2561.7,16.0]
[1749147338117,0.36954792,2561.8,2561.7,19.90365772]
[1749147338291,9.10854792,2561.8,2561.7,19.90365772]
[1749147338494,0.36954792,2561.8,2561.7,19.90365772]
[1749147338695,0.36985197,2562.0,2561.8,16.0]
[1749147339003,0.36127383,2562.2,2561.9,19.9033237]
[1749147339311,30.0,2562.0,2561.9,19.90327857]
[1749147339511,0.3698633,2562.0,2561.9,16.0]
[1749147339712,1.39221721,2562.0,2561.9,16.0]
[1749147339911,1.75349118,2562.0,2561.9,16.0]
[1749147340417,1.39221721,2562.0,2561.9,19.90335298]
[1749147340626,0.7311641,2562.0,2561.9,19.90335298]
[1749147340827,9.06574461,2562.0,2561.9,19.90335298]
[1749147341035,0.73094446,2562.0,2561.9,19.90335298]
[1749147341203,39.06074461,2562.0,2561.9,19.90335298]
[1749147341402,39.42183207,2562.0,2561.9,19.90335298]
[1749147341605,0.73083207,2562.0,2561.9,19.90335298]
[1749147341942,0.3611053,2562.8,2562.7,19.90213446]
[1749147342139,0.73103101,2562.8,2562.7,19.90213446]
[1749147342432,0.36983006,2563.0,2562.9,3.90182995]
[1749147342730,1.16477786,2563.5,2563.1,3.90139692]
[1749147342932,9.03582144,2563.4,2563.2,3.90137328]
[1749147343135,1.16477786,2563.5,2563.0,20.65217772]
[1749147343136,1.16477786,2563.5,2563.4,3.90106889]
[1749147343291,9.83077786,2563.5,2563.4,19.90106889]
[1749147343498,10.19436575,2563.5,2563.4,19.90106889]
[1749147343834,10.19436575,2563.5,2563.4,20.45106889]
[1749147343835,1.16477786,2563.5,2563.4,20.45106889]
[1749147344132,8.65,2563.5,2563.4,20.45106889]
[1749147344381,0.73012901,2563.8,2563.7,3.90061239]
[1749147344630,9.01758789,2563.8,2563.7,19.90061239]
[1749147344831,8.648,2563.8,2563.7,16.0]
[1749147345140,41.11860079,2563.8,2563.7,16.0]
[1749147345338,41.11860079,2563.8,2563.7,19.90061239]
[1749147345521,32.47060079,2563.8,2563.7,19.90061239]
[1749147345720,10.7390129,2563.8,2563.7,19.90061239]
[1749147345919,8.638,2563.8,2563.7,19.90061239]
[1749147346306,38.638,2563.8,2563.7,16.0]
[1749147346537,38.99789459,2563.8,2563.7,16.0]
[1749147346742,0.36878864,2563.8,2563.7,19.90061239]
[1749147347039,8.455,2563.9,2563.8,3.90046025]
[1749147347195,17.073,2563.9,2563.8,3.90046025]
[1749147347396,8.455,2563.9,2563.8,19.90046025]
[1749147347633,8.629,2563.9,2563.8,19.90046025]
[1749147348008,38.629,2563.9,2563.8,19.90046025]
[1749147348338,8.629,2563.9,2563.8,19.90046025]
[1749147348713,38.629,2563.9,2563.8,16.0]
[1749147349020,39.4919,2563.9,2563.8,16.0]
[1749147349835,8.591,2563.9,2563.8,19.90046025]
[1749147350216,38.591,2563.9,2563.8,19.90046025]
[1749147350742,8.571,2563.9,2563.8,19.90046025]
[1749147350952,8.57,2563.9,2563.8,19.90046025]
[1749147351237,0.02,2563.9,2563.8,19.90046025]
[1749147351407,38.56,2563.9,2563.8,16.0]
[1749147351738,38.56,2563.9,2563.8,19.90046025]
[1749147351955,8.56,2563.9,2563.8,19.90046025]
[1749147352159,0.02,2563.9,2563.8,19.90046025]
[1749147352318,8.546,2563.9,2563.8,22.8305527]
[1749147352518,0.02,2563.9,2563.8,22.8305527]
[1749147352741,0.02,2563.9,2563.8,23.6595527]
[1749147352946,8.538,2563.9,2563.8,23.6595527]
[1749147353148,0.02,2563.9,2563.8,23.6595527]
[1749147353464,8.534,2563.9,2563.8,24.28774413]
[1749147355253,8.502,2563.9,2563.8,24.28774413]
[1749147355454,0.02,2563.9,2563.8,24.28774413]
[1749147355619,8.497,2563.9,2563.8,24.28774413]
[1749147356238,8.497,2563.9,2563.8,23.6595527]
[1749147356440,8.497,2563.9,2563.8,32.36982075]
[1749147357246,0.02,2563.9,2563.8,32.36982075]
[1749147357559,8.473,2563.9,2563.8,23.1095527]
[1749147357929,0.02,2563.9,2563.8,31.81982075]
[1749147358127,0.02,2563.9,2563.8,32.36982075]
[1749147358128,8.463,2563.9,2563.8,32.36982075]
[1749147358661,8.451,2563.9,2563.8,32.36982075]
[1749147358955,8.451,2563.9,2563.8,23.1095527]
[1749147359265,8.451,2563.9,2563.8,3.90046025]
[1749147359769,8.451,2563.9,2563.8,19.90046025]
[1749147359945,8.451,2563.9,2563.8,3.90046025]
[1749147360349,30.0,2563.7,2563.3,3.90111524]
[1749147360674,30.0,2563.7,2562.7,3.90203256]
[1749147360832,40.0,2563.5,2562.7,0.39487439]
[1749147361033,8.408,2563.4,2563.3,16.0]
[1749147361274,30.0,2563.3,2562.1,12.61331318]
[1749147361557,0.7911,2563.2,2563.1,19.90152549]
[1749147361771,0.7911,2563.2,2563.1,16.0]
[1749147362129,0.7911,2563.2,2562.7,0.39319706]
[1749147362334,0.7911,2563.2,2563.1,3.90152549]
[1749147362841,0.7911,2563.2,2562.7,16.0]
[1749147363040,0.7911,2563.2,2562.2,1.77133132]
[1749147363041,30.0,2563.1,2562.2,1.77133132]
[1749147363259,30.0,2562.9,2562.3,3.90261992]
[1749147363470,40.0,2562.7,2562.6,3.90228132]
[1749147363776,3.8023,2563.2,2562.8,3.9019822]
[1749147364077,8.367,2563.1,2563.0,19.90167772]
[1749147364270,3.92040919,2563.9,2563.4,3.90106889]
[1749147364271,3.8195,2563.5,2563.4,3.90106889]
[1749147364430,42.1825,2563.5,2563.4,3.90106889]
[1749147364633,3.8195,2563.5,2563.4,19.90106889]
[1749147364937,12.1765,2563.5,2563.4,19.90106889]
[1749147365659,2.992,2563.5,2563.4,19.90106889]
[1749147365972,0.02,2563.9,2563.8,19.90046025]
[1749147366147,8.361,2563.9,2563.8,19.90046025]
[1749147366468,0.02,2563.9,2563.8,19.90046025]
[1749147366654,0.02,2563.9,2563.8,20.45046025]
[1749147366853,0.02,2563.9,2563.8,22.88556529]
[1749147367060,8.349,2563.9,2563.8,23.66716529]
[1749147367265,8.344,2563.9,2563.8,23.66716529]
[1749147368256,9.1433,2563.9,2563.8,16.0]
[1749147368785,39.1203,2563.9,2563.8,16.0]
[1749147368958,39.1203,2563.9,2563.8,19.90046025]
[1749147369278,0.8193,2563.9,2563.8,19.90046025]
[1749147369490,9.1103,2563.9,2563.8,19.90046025]
[1749147369668,8.311,2563.9,2563.8,19.90046025]
[1749147370677,8.293,2563.9,2563.8,19.90046025]
[1749147370880,8.293,2563.9,2563.8,16.0]
[1749147371082,38.293,2563.9,2563.8,16.0]
[1749147371385,42.4838694,2563.9,2563.8,16.0]
[1749147371583,42.49220108,2563.9,2563.8,16.0]
[1749147371747,0.75146274,2563.9,2563.8,19.90046025]
[1749147371946,0.02,2563.9,2563.8,19.90046025]
[1749147372441,8.266,2563.9,2563.8,20.68906025]
[1749147372748,8.266,2563.9,2563.8,21.23906025]
[1749147372749,0.02,2563.9,2563.8,21.23906025]
[1749147372982,0.02,2563.9,2563.8,32.46329495]
[1749147373282,8.257,2563.9,2563.8,32.46329495]
[1749147373685,8.25,2563.9,2563.8,32.46329495]
[1749147374054,0.02,2563.9,2563.8,32.46329495]
[1749147374357,8.238,2563.9,2563.8,32.46329495]
[1749147374594,0.02,2564.9,2564.8,3.89893948]
[1749147374804,0.02,2564.9,2564.8,20.44893948]
[1749147374999,8.229,2564.9,2564.8,29.15920753]
[1749147375219,0.02,2564.9,2564.8,29.15920753]
[1749147375501,8.225,2564.9,2564.8,30.12697134]
[1749147375890,0.02,2564.9,2564.8,30.12697134]
[1749147376218,8.216,2564.9,2564.8,30.92597134]
[1749147376720,8.207,2564.9,2564.8,30.92597134]
[1749147377321,0.02,2564.9,2564.8,31.43597134]
[1749147377489,8.194,2564.9,2564.8,31.43597134]
[1749147377691,8.193,2564.9,2564.8,31.43597134]
[1749147377892,8.193,2564.9,2564.8,23.11415613]
[1749147378092,8.193,2564.9,2564.8,22.60415613]
[1749147378783,8.193,2564.9,2564.8,31.31442418]
[1749147379631,8.193,2564.9,2564.8,19.89893948]
[1749147381633,8.193,2564.9,2564.2,3.89983904]
[1749147381634,8.9525,2564.9,2564.2,3.89983904]
[1749147381827,8.9525,2564.9,2563.8,2.51396665]
[1749147381828,30.0,2564.7,2563.8,7.24653774]
[1749147381987,30.0,2564.7,2564.6,3.89924354]
[1749147382216,8.9525,2564.9,2564.8,16.0]
[1749147382467,33.89894886,2564.8,2564.3,3.89956599]
[1749147382751,0.7795,2564.9,2564.7,3.89909151]
[1749147382950,0.7795,2564.9,2564.8,3.89893948]
[1749147383162,8.8905,2564.9,2563.8,10.43893242]
[1749147383315,8.8905,2564.9,2564.0,3.900156]
[1749147383508,8.8905,2564.9,2564.8,3.89893948]
[1749147383941,8.8775,2564.9,2564.8,19.89893948]
[1749147384741,9.76525,2564.9,2564.8,16.0]
[1749147385051,9.76525,2564.9,2564.1,3.89998289]
[1749147385052,0.7602,2564.3,2564.1,3.89998289]
[1749147385349,30.0,2564.1,2563.8,3.90032986]
[1749147385525,30.0,2564.1,2563.7,3.90053187]
[1749147385869,40.0,2563.7,2563.4,3.90093396]
[1749147386023,40.0,2563.7,2563.3,3.90118892]
[1749147386024,8.077,2563.6,2563.3,3.90118892]
[1749147386232,30.0,2563.5,2562.6,0.833]
[1749147386421,30.0,2563.5,2563.4,3.90106889]
[1749147386609,3.69666582,2563.5,2563.4,3.90106889]
[1749147386959,0.36053584,2563.9,2563.7,3.90061239]
[1749147387163,8.064,2563.8,2563.7,19.90061239]
[1749147387742,8.064,2563.8,2563.6,16.0]
[1749147387944,8.064,2563.8,2563.7,19.90061239]
[1749147388461,0.7602,2564.1,2564.0,3.900156]
[1749147388666,8.8032,2564.1,2564.0,3.900156]
[1749147388987,30.0,2564.0,2563.4,16.55]
[1749147389148,9.68352,2564.1,2563.4,19.90102168]
[1749147389351,9.68352,2564.1,2563.8,3.90038639]
[1749147389579,9.68352,2564.1,2563.4,19.90102787]
[1749147389786,0.7602,2564.1,2563.4,3.90102787]
[1749147389946,0.7602,2564.1,2564.0,19.900156]
[1749147390146,38.7942,2564.1,2564.0,16.0]
[1749147390346,39.15476557,2564.1,2564.0,16.0]
[1749147390548,30.36056415,2564.1,2564.0,19.900156]
[1749147390746,30.0,2564.4,2564.1,19.89986917]
[1749147390951,0.7602,2564.5,2564.0,19.90002591]
[1749147390952,11.10002,2564.3,2564.0,19.90002591]
[1749147391155,8.024,2564.3,2564.1,3.89987058]
[1749147391350,0.7602,2564.5,2564.4,3.89954765]
[1749147391593,8.7762,2564.5,2564.4,16.0]
[1749147391901,38.7762,2564.5,2564.4,16.0]
[1749147392055,46.93737087,2564.5,2564.4,16.0]
[1749147392253,46.57651231,2564.5,2564.4,16.0]
[1749147392502,51.30689546,2564.5,2564.4,16.0]
[1749147392671,51.30689588,2564.5,2564.4,16.0]
[1749147392866,51.30688667,2564.5,2564.4,16.0]
[1749147393103,51.3068734,2564.5,2564.4,16.0]
[1749147393585,47.40752127,2564.5,2564.4,16.0]
[1749147393888,50.94633313,2564.5,2564.4,16.0]
[1749147394090,51.30721832,2564.5,2564.4,15.75]
[1749147394263,50.94633313,2564.5,2564.4,15.13476562]
[1749147394614,10.0,2564.1,2563.9,3.9001965]
[1749147394788,7.997,2564.0,2563.9,3.9001965]
[1749147395110,7.993,2564.0,2563.9,3.9001965]
[1749147396170,5.41641945,2564.4,2563.6,3.9007375]
[1749147396373,5.41641945,2564.4,2564.3,16.0]
[1749147396374,0.7843,2564.4,2564.3,16.0]
[1749147396658,12.7533,2564.4,2564.3,3.89969972]
[1749147397062,12.7533,2564.4,2564.3,19.89969972]
[1749147397286,16.65284765,2564.4,2564.3,16.0]
[1749147397491,15.0810142,2564.4,2564.3,16.0]
[1749147397694,45.44227398,2564.4,2564.3,16.0]
[1749147397916,49.34176077,2564.4,2564.3,16.0]
[1749147398135,30.0,2564.3,2563.9,16.0]
[1749147398299,3.90091672,2564.2,2563.6,3.90071914]
[1749147398500,6.725,2564.3,2563.9,3.90018225]
[1749147398700,7.948,2564.2,2564.0,3.90005924]
[1749147398986,7.948,2564.2,2563.8,16.0]
[1749147399185,37.90001197,2564.1,2563.7,16.0]
[1749147399424,9.40341763,2564.1,2563.6,19.90067575]
[1749147399601,0.7651,2563.8,2563.3,3.90122108]
[1749147399818,7.933,2563.7,2562.9,1.273]
[1749147400137,30.0,2563.5,2563.3,16.0]
[1749147400312,7.93,2563.4,2563.3,3.90122108]
[1749147400488,7.93,2563.4,2562.8,0.38161507]
[1749147400684,7.93,2563.4,2563.3,3.90122108]
[1749147400898,7.93,2563.4,2563.3,19.90122108]
[1749147401103,0.7651,2563.8,2563.7,19.90061239]
[1749147401302,2.638,2564.0,2563.9,3.90030812]
[1749147401525,10.553,2564.0,2563.8,19.90037717]
[1749147401733,10.553,2564.0,2563.9,3.90030812]
[1749147402101,10.546,2564.0,2563.9,3.90030812]
[1749147402740,10.535,2564.0,2563.9,3.90030812]
[1749147403036,10.535,2564.0,2563.9,19.90030812]
[1749147404419,4.0,2564.1,2564.0,19.900156]
[1749147404619,4.0,2564.1,2564.0,23.6675736]
[1749147405016,2.659,2564.9,2564.8,19.89893948]
[1749147405217,0.02,2564.9,2564.8,19.89893948]
[1749147405548,7.89,2564.9,2564.8,19.89893948]
[1749147406109,7.883,2564.9,2564.8,19.89893948]
[1749147407168,7.883,2564.9,2564.8,16.0]
[1749147407169,38.6713,2564.9,2564.8,16.0]
[1749147407662,8.6713,2564.9,2564.8,19.89893948]
[1749147407828,0.02,2564.9,2564.8,19.89893948]
[1749147408006,7.862,2564.9,2564.8,19.89893948]
[1749147408546,7.862,2564.9,2564.8,16.0]
[1749147409046,30.0,2564.8,2564.1,3.89997921]
[1749147409229,40.0,2564.6,2564.4,3.89947877]
[1749147409430,10.0,2564.4,2564.3,3.89955987]
[1749147409635,37.827,2564.4,2563.7,1.3102]
[1749147409833,30.0,2564.3,2564.1,3.8999227]
[1749147410138,3.7827,2564.2,2562.9,4.69956748]
[1749147410309,3.90185036,2562.9,2562.4,3.90252707]
[1749147410513,30.0,2562.7,2562.1,0.02]
[1749147411047,34.72569594,2562.2,2562.1,0.02]
[1749147411252,0.8042,2561.3,2561.1,0.02]
[1749147411546,44.3684198,2561.2,2561.1,0.02]
[1749147411749,53.07868785,2561.2,2561.1,0.02]
[1749147412146,53.44782022,2561.2,2561.1,0.02]
[1749147412350,54.24953604,2561.2,2561.1,0.02]
[1749147412648,54.81707955,2561.2,2561.1,0.02]
[1749147412949,55.18512568,2561.2,2561.1,0.02]
[1749147413153,30.0,2560.6,2560.1,0.02]
[1749147413356,30.0,2560.4,2560.1,0.02]
[1749147413538,33.7827,2560.4,2560.1,0.02]
[1749147413710,0.7805,2560.3,2560.1,0.02]
[1749147413916,33.90594484,2560.2,2560.1,0.02]
[1749147414859,34.45594484,2560.2,2560.1,0.02]
[1749147415028,0.7848,2559.6,2558.9,3.90791015]
[1749147415357,30.0,2559.4,2558.2,3.90892932]
[1749147415650,30.0,2559.4,2558.8,16.0]
[1749147415852,33.90747108,2559.2,2558.1,0.02]
[1749147416073,44.7841705,2559.2,2558.1,0.02]
[1749147416377,0.822,2558.4,2558.1,0.02]
[1749147416546,30.0,2558.2,2558.1,0.02]
[1749147416872,30.0,2558.3,2558.1,3.92915132]
[1749147417045,30.0,2558.3,2558.2,3.90899851]
[1749147417248,30.0,2558.3,2558.2,19.90899851]
[1749147417430,34.28135105,2558.8,2558.7,19.90823465]
[1749147417630,12.51129663,2558.8,2558.7,19.90823465]
[1749147417969,42.51129663,2558.8,2558.7,16.0]
[1749147418171,46.41221335,2558.8,2558.7,16.0]
[1749147418334,46.41221335,2558.8,2558.3,3.90874764]
[1749147418538,30.32494558,2558.7,2558.1,0.02]
[1749147418734,30.0,2558.5,2558.1,3.92912333]
[1749147418961,30.0,2558.5,2558.1,0.02]
[1749147419180,30.0,2558.5,2558.1,16.02]
[1749147419389,30.0,2558.5,2558.1,0.02]
[1749147419696,30.0,2558.5,2558.1,3.92914964]
[1749147419843,10.0,2558.3,2558.1,3.92912384]
[1749147420050,7.92,2558.2,2558.1,19.92905957]
[1749147420246,40.0,2558.7,2558.3,16.0]
[1749147420436,30.0,2558.5,2558.1,0.02]
[1749147420934,30.0,2558.4,2558.1,0.02]
[1749147421137,0.7611,2558.2,2558.1,0.02]
[1749147421368,30.0,2557.5,2557.3,0.15472454]
[1749147421579,41.2342,2557.4,2557.3,0.15472454]
[1749147421793,41.2342,2557.4,2556.1,0.02]
[1749147421794,16.0,2557.2,2556.1,0.02]
[1749147421964,30.0,2556.6,2555.9,3.91239515]
[1749147422162,32.556,2556.6,2556.5,19.91159788]
[1749147422371,9.23971582,2557.1,2557.0,3.910833]
[1749147422537,46.348,2557.1,2557.0,3.910833]
[1749147422869,0.32494558,2557.1,2557.0,3.910833]
[1749147423071,8.31094558,2557.1,2557.0,20.460833]
[1749147423252,8.31094558,2557.1,2557.0,21.211833]
[1749147423253,0.32494558,2557.1,2557.0,21.211833]
[1749147423459,8.02,2557.1,2557.0,21.211833]
[1749147423671,8.443,2558.8,2557.0,21.211833]
[1749147423672,9.2427,2558.8,2558.7,16.0]
[1749147423971,38.58845704,2558.8,2558.7,16.0]
[1749147424182,46.61245704,2558.8,2558.7,16.0]
[1749147424375,46.62445704,2558.8,2558.7,15.98]
[1749147424555,38.58845704,2558.8,2558.7,19.88823465]
[1749147424757,0.14545704,2558.8,2558.7,19.88823465]
[1749147424956,8.17445704,2558.8,2558.7,22.81788725]
[1749147425166,8.17245704,2558.8,2558.7,22.81788725]
[1749147425366,8.17245704,2558.8,2558.7,20.43823465]
[1749147425990,8.027,2558.8,2558.7,20.43823465]
[1749147426297,0.02,2558.9,2558.8,20.45808191]
[1749147426592,8.12,2558.9,2558.8,20.45808191]
[1749147426976,0.02,2558.9,2558.8,33.81631299]
[1749147427224,8.111,2558.9,2558.8,33.81631299]
[1749147427385,8.111,2558.9,2558.8,23.71221357]
[1749147427562,8.111,2558.9,2558.8,33.81631299]
[1749147427903,8.104,2558.9,2558.8,33.81631299]